fUST/lending_fUST_20250528
["ID","MTS","AMOUNT","RATE_DAILY","PERIOD"]
[362603878,1748373045168,-430.0,0.00019178,2]
[362603880,1748373045178,-430.0,0.00019178,2]
[362603882,1748373045187,-430.0,0.00019178,2]
[362603884,1748373045196,-430.0,0.00019178,2]
[362603887,1748373045207,-430.0,0.00019178,2]
[362603889,1748373045216,-430.0,0.00019178,2]
[362603891,1748373045228,-430.0,0.00019178,2]
[362603893,1748373045238,-533.34763631,0.00019178,2]
[362603895,1748373045247,-430.0,0.00019178,2]
[362603897,1748373045257,-430.0,0.00019178,2]
[362603899,1748373045267,-430.0,0.00019178,2]
[362603901,1748373045276,-430.0,0.00019178,2]
[362603903,1748373045286,-430.0,0.00019178,2]
[362603905,1748373045296,-430.0,0.00019178,2]
[362603907,1748373045305,-430.0,0.00019178,2]
[362603909,1748373045315,-430.0,0.00019178,2]
[362603911,1748373045324,-632.85,0.00019178,2]
[362603913,1748373045335,-430.0,0.00019178,2]
[362603915,1748373045344,-430.0,0.00019178,2]
[362603917,1748373045354,-430.0,0.00019178,2]
[362603919,1748373045363,-430.0,0.00019178,2]
[362603921,1748373045373,-430.0,0.00019178,2]
[362603923,1748373045383,-1523.43,0.00019178,2]
[362603926,1748373045405,-358.21032067,0.00019178,2]
[362603928,1748373045417,-430.0,0.00019178,2]
[362603931,1748373045427,-430.0,0.00019178,2]
[362603933,1748373045438,-2001.93,0.00019178,2]
[362603935,1748373045448,-430.0,0.00019178,2]
[362603937,1748373045458,-552.94003811,0.00019178,2]
[362603939,1748373045468,-430.0,0.00019178,2]
[362603941,1748373045478,-430.0,0.00019178,2]
[362603943,1748373045488,-430.0,0.00019178,2]
[362603945,1748373045498,-430.0,0.00019178,2]
[362603947,1748373045507,-430.0,0.00019178,2]
[362603949,1748373045518,-330.0,0.00019178,2]
[362603951,1748373045528,-430.0,0.00019178,2]
[362603953,1748373045538,-430.0,0.00019178,2]
[362603955,1748373045549,-1469.89,0.00019178,2]
[362603957,1748373045559,-430.0,0.00019178,2]
[362603959,1748373045568,-430.0,0.00019178,2]
[362603961,1748373045578,-235.47272613,0.00019178,2]
[362603964,1748373045588,-500.0,0.00019178,2]
[362603966,1748373045599,-333.43030095,0.00019178,2]
[362603968,1748373045609,-430.0,0.00019178,2]
[362603970,1748373045619,-430.0,0.00019178,2]
[362603972,1748373045630,-430.0,0.00019178,2]
[362603974,1748373045641,-430.0,0.00019178,2]
[362603976,1748373045651,-430.0,0.00019178,2]
[362603978,1748373045661,-430.0,0.00019178,2]
[362603980,1748373045671,-430.0,0.00019178,2]
[362603982,1748373045680,-430.0,0.00019178,2]
[362603984,1748373045690,-430.0,0.00019178,2]
[362603986,1748373045700,-430.0,0.00019178,2]
[362603989,1748373045710,-430.0,0.00019178,2]
[362603991,1748373045720,-430.0,0.00019178,2]
[362603993,1748373045730,-430.0,0.00019178,2]
[362603995,1748373045740,-430.0,0.00019178,2]
[362603997,1748373045750,-510.18,0.00019178,2]
[362603999,1748373045760,-430.0,0.00019178,2]
[362604001,1748373045770,-430.0,0.00019178,2]
[362604003,1748373045780,-430.0,0.00019178,2]
[362604005,1748373045790,-386.51473594,0.00019178,2]
[362604007,1748373045800,-430.0,0.00019178,2]
[362604009,1748373045810,-430.0,0.00019178,2]
[362604011,1748373045819,-430.0,0.00019178,2]
[362604013,1748373045830,-2788.97,0.00019178,2]
[362604015,1748373045839,-430.0,0.00019178,2]
[362604017,1748373045849,-430.0,0.00019178,2]
[362604020,1748373045859,-430.0,0.00019178,2]
[362604022,1748373045869,-430.0,0.00019178,2]
[362604024,1748373045880,-430.0,0.00019178,2]
[362604026,1748373045891,-408.90697352,0.00019178,2]
[362604028,1748373045901,-430.0,0.00019178,2]
[362604030,1748373045912,-473.54694317,0.00019178,2]
[362604032,1748373045922,-430.0,0.00019178,2]
[362604034,1748373045932,-473.7476096,0.00019178,2]
[362604036,1748373045941,-298.75180003,0.00019178,2]
[362604038,1748373045952,-1376.88,0.00019178,2]
[362604040,1748373045962,-430.0,0.00019178,2]
[362604042,1748373045971,-430.0,0.00019178,2]
[362604044,1748373045983,-430.0,0.00019178,2]
[362604046,1748373045994,-430.0,0.00019178,2]
[362604048,1748373046004,-430.0,0.00019178,2]
[362604050,1748373046014,-430.0,0.00019178,2]
[362604052,1748373046025,-430.0,0.00019178,2]
[362604054,1748373046035,-430.0,0.00019178,2]
[362604056,1748373046045,-430.0,0.00019178,2]
[362604059,1748373046055,-430.0,0.00019178,2]
[362604061,1748373046066,-430.0,0.00019178,2]
[362604064,1748373046077,-430.0,0.00019178,2]
[362604066,1748373046087,-430.0,0.00019178,2]
[362604068,1748373046096,-879.4,0.00019178,2]
[362604070,1748373046105,-430.0,0.00019178,2]
[362604072,1748373046115,-430.0,0.00019178,2]
[362604074,1748373046124,-430.0,0.00019178,2]
[362604076,1748373046134,-430.0,0.00019178,2]
[362604078,1748373046148,-400.0,0.00019178,2]
[362604080,1748373046158,-160.73316487,0.00019178,2]
[362604082,1748373046170,-377.22024138,0.00019178,2]
[362604085,1748373046180,-430.0,0.00019178,2]
[362604087,1748373046191,-430.0,0.00019178,2]
[362604089,1748373046200,-430.0,0.00019178,2]
[362604091,1748373046210,-1761.1,0.00019178,2]
[362604093,1748373046219,-430.0,0.00019178,2]
[362604095,1748373046229,-430.0,0.00019178,2]
[362604097,1748373046239,-430.0,0.00019178,2]
[362604099,1748373046248,-430.0,0.00019178,2]
[362604101,1748373046258,-430.0,0.00019178,2]
[362604103,1748373046267,-454.31507374,0.00019178,2]
[362604105,1748373046277,-629.37,0.00019178,2]
[362604107,1748373046287,-430.0,0.00019178,2]
[362604109,1748373046297,-430.0,0.00019178,2]
[362604111,1748373046307,-430.0,0.00019178,2]
[362604113,1748373046316,-430.0,0.00019178,2]
[362604115,1748373046326,-10.0648858,0.00019178,2]
[362604145,1748373046589,-281.58255109,0.00019178,2]
[362604147,1748373046599,-346.2291126,0.00019178,2]
[362604149,1748373046612,-83.7708874,0.00019178,2]
[362604151,1748373046622,-430.0,0.00019178,2]
[362604154,1748373046632,-430.0,0.00019178,2]
[362604156,1748373046643,-430.0,0.00019178,2]
[362604158,1748373046651,-430.0,0.00019178,2]
[362604160,1748373046661,-430.0,0.00019178,2]
[362604162,1748373046671,-430.0,0.00019178,2]
[362604164,1748373046680,-430.0,0.00019178,2]
[362604166,1748373046690,-304.80428803,0.00019178,2]
[362604168,1748373046699,-430.0,0.00019178,2]
[362604170,1748373046709,-430.0,0.00019178,2]
[362604172,1748373046719,-430.0,0.00019178,2]
[362604174,1748373046728,-430.0,0.00019178,2]
[362604176,1748373046738,-430.0,0.00019178,2]
[362604178,1748373046747,-430.0,0.00019178,2]
[362604180,1748373046757,-430.0,0.00019178,2]
[362604182,1748373046766,-400.0,0.00019178,2]
[362604185,1748373046775,-430.0,0.00019178,2]
[362604187,1748373046785,-430.0,0.00019178,2]
[362604189,1748373046794,-430.0,0.00019178,2]
[362604191,1748373046804,-430.0,0.00019178,2]
[362604193,1748373046814,-430.0,0.00019178,2]
[362604195,1748373046823,-430.0,0.00019178,2]
[362604197,1748373046833,-430.0,0.00019178,2]
[362604199,1748373046842,-430.0,0.00019178,2]
[362604201,1748373046853,-430.0,0.00019178,2]
[362604203,1748373046862,-430.0,0.00019178,2]
[362604205,1748373046871,-430.0,0.00019178,2]
[362604207,1748373046881,-430.0,0.00019178,2]
[362604209,1748373046891,-432.23953005,0.00019178,2]
[362604210,1748373046901,-741.97,0.00019178,2]
[362604212,1748373046911,-430.0,0.00019178,2]
[362604214,1748373046920,-430.0,0.00019178,2]
[362604217,1748373046931,-432.16107037,0.00019178,2]
[362604219,1748373046940,-430.0,0.00019178,2]
[362604221,1748373046950,-430.0,0.00019178,2]
[362604223,1748373046959,-529.58,0.00019178,2]
[362604225,1748373046969,-430.0,0.00019178,2]
[362604227,1748373046979,-430.0,0.00019178,2]
[362604229,1748373046992,-430.0,0.00019178,2]
[362604231,1748373047002,-430.0,0.00019178,2]
[362604233,1748373047012,-516.88429869,0.00019178,2]
[362604235,1748373047023,-430.0,0.00019178,2]
[362604237,1748373047034,-430.0,0.00019178,2]
[362604239,1748373047043,-437.16,0.00019178,2]
[362604241,1748373047053,-400.0,0.00019178,2]
[362604243,1748373047063,-430.0,0.00019178,2]
[362604245,1748373047073,-430.0,0.00019178,2]
[362604247,1748373047083,-430.0,0.00019178,2]
[362604249,1748373047093,-430.0,0.00019178,2]
[362604251,1748373047102,-523.83360075,0.00019178,2]
[362604253,1748373047111,-430.0,0.00019178,2]
[362604255,1748373047121,-430.0,0.00019178,2]
[362604257,1748373047130,-874.52,0.00019178,2]
[362604259,1748373047143,-430.0,0.00019178,2]
[362604261,1748373047154,-430.0,0.00019178,2]
[362604263,1748373047164,-430.0,0.00019178,2]
[362604265,1748373047173,-194.6266197,0.00019178,2]
[362604267,1748373047182,-430.0,0.00019178,2]
[362604269,1748373047192,-340.0,0.00019178,2]
[362604272,1748373047203,-461.22,0.00019178,2]
[362604274,1748373047212,-430.0,0.00019178,2]
[362604276,1748373047222,-430.0,0.00019178,2]
[362604278,1748373047231,-430.0,0.00019178,2]
[362604280,1748373047240,-430.0,0.00019178,2]
[362604282,1748373047250,-430.0,0.00019178,2]
[362604284,1748373047259,-430.0,0.00019178,2]
[362604286,1748373047269,-430.0,0.00019178,2]
[362604288,1748373047278,-430.0,0.00019178,2]
[362604290,1748373047287,-653.8,0.00019178,2]
[362604292,1748373047296,-430.0,0.00019178,2]
[362604294,1748373047305,-354.97,0.00019178,2]
[362604296,1748373047315,-430.0,0.00019178,2]
[362604298,1748373047324,-430.0,0.00019178,2]
[362604300,1748373047333,-430.0,0.00019178,2]
[362604302,1748373047343,-430.0,0.00019178,2]
[362604304,1748373047352,-430.0,0.00019178,2]
[362604306,1748373047361,-430.0,0.00019178,2]
[362604308,1748373047373,-1079.19,0.00019178,2]
[362604310,1748373047382,-430.0,0.00019178,2]
[362604312,1748373047393,-473.03,0.00019178,2]
[362604314,1748373047403,-430.0,0.00019178,2]
[362604316,1748373047412,-430.0,0.00019178,2]
[362604318,1748373047421,-862.38,0.00019178,2]
[362604320,1748373047431,-430.0,0.00019178,2]
[362604322,1748373047441,-167.23489735,0.00019178,2]
[362604324,1748373047450,-374.36113551,0.00019178,2]
[362604342,1748373047611,-45.98886449,0.00019178,2]
[362604344,1748373047621,-430.0,0.00019178,2]
[362604346,1748373047631,-430.0,0.00019178,2]
[362604348,1748373047641,-430.0,0.00019178,2]
[362604350,1748373047651,-430.0,0.00019178,2]
[362604352,1748373047661,-430.0,0.00019178,2]
[362604354,1748373047671,-500.0,0.00019178,2]
[362604356,1748373047680,-192.323627,0.00019178,2]
[362604358,1748373047690,-370.93851429,0.00019314,2]
[362604360,1748373047702,-2446.22593929,0.00019314,2]
[362604362,1748373047711,-212.62946336,0.00019352,3]
[362604364,1748373047720,-151.0,0.00019352,2]
[362604366,1748373047730,-174.6061897,0.00019352,2]
[362604368,1748373047740,-151.0,0.00019352,2]
[362604370,1748373047750,-151.0,0.00019352,2]
[362604372,1748373047759,-151.0,0.00019352,2]
[362604374,1748373047769,-151.0,0.00019352,2]
[362604376,1748373047779,-151.0,0.00019352,2]
[362604378,1748373047788,-151.0,0.00019352,2]
[362604380,1748373047798,-151.0,0.00019352,2]
[362604382,1748373047809,-1120.67247974,0.00019352,2]
[362604385,1748373047820,-1048.79303016,0.00019352,2]
[362604387,1748373047832,-6656.34090296,0.00019352,2]
[362604389,1748373047843,-831.42093688,0.00019452,3]
[362604391,1748373047853,-430.0,0.00019452,2]
[362604393,1748373047863,-430.0,0.00019452,2]
[362604395,1748373047873,-430.0,0.00019452,2]
[362604397,1748373047882,-430.0,0.00019452,2]
[362604399,1748373047891,-430.0,0.00019452,2]
[362604401,1748373047901,-430.0,0.00019452,2]
[362604403,1748373047912,-335.77611539,0.00019452,2]
[362604405,1748373047922,-430.0,0.00019452,2]
[362604407,1748373047932,-430.0,0.00019452,2]
[362604409,1748373047942,-430.0,0.00019452,2]
[362604411,1748373047951,-151.0,0.00019452,2]
[362604413,1748373047961,-154.810056,0.00019452,2]
[362604415,1748373047971,-151.0,0.00019452,2]
[362604417,1748373047982,-430.0,0.00019452,2]
[362604418,1748373047993,-151.0,0.00019452,2]
[362604420,1748373048003,-151.0,0.00019452,2]
[362604422,1748373048013,-151.0,0.00019452,2]
[362604424,1748373048024,-151.0,0.00019452,2]
[362604426,1748373048034,-151.0,0.00019452,2]
[362604428,1748373048043,-151.0,0.00019452,2]
[362604431,1748373048055,-217.0183802,0.00019452,2]
[362604433,1748373048069,-430.0,0.00019452,2]
[362604435,1748373048079,-430.0,0.00019452,2]
[362604437,1748373048089,-430.0,0.00019452,2]
[362604439,1748373048098,-430.0,0.00019452,2]
[362604441,1748373048109,-470.0,0.00019452,2]
[362604443,1748373048119,-430.0,0.00019452,2]
[362604445,1748373048129,-430.0,0.00019452,2]
[362604447,1748373048139,-151.0,0.00019452,2]
[362604449,1748373048150,-430.0,0.00019452,2]
[362604451,1748373048160,-151.0,0.00019452,2]
[362604453,1748373048170,-430.0,0.00019452,2]
[362604455,1748373048181,-151.0,0.00019452,2]
[362604457,1748373048191,-151.0,0.00019452,2]
[362604459,1748373048202,-151.0,0.00019452,2]
[362604461,1748373048212,-151.0,0.00019452,2]
[362604463,1748373048223,-430.0,0.00019452,2]
[362604465,1748373048233,-258.357521,0.00019452,2]
[362604467,1748373048243,-546.27670292,0.00019452,2]
[362604469,1748373048253,-430.0,0.00019452,2]
[362604471,1748373048263,-325.28808116,0.00019452,2]
[362604473,1748373048273,-430.0,0.00019452,2]
[362604475,1748373048283,-430.0,0.00019452,2]
[362604477,1748373048293,-430.0,0.00019452,2]
[362604479,1748373048303,-368.49301855,0.00019452,2]
[362604481,1748373048321,-61.50698145,0.00019452,2]
[362604483,1748373048331,-444.58815403,0.00019452,2]
[362604485,1748373048340,-151.0,0.00019452,2]
[362604487,1748373048350,-151.0,0.00019452,2]
[362604489,1748373048360,-151.0,0.00019452,2]
[362604491,1748373048369,-151.0,0.00019452,2]
[362604493,1748373048379,-151.0,0.00019452,2]
[362604495,1748373048389,-430.0,0.00019452,2]
[362604497,1748373048401,-561.48008457,0.00019452,2]
[362604499,1748373048410,-430.0,0.00019452,2]
[362604501,1748373048420,-430.0,0.00019452,2]
[362604504,1748373048431,-430.0,0.00019452,2]
[362604505,1748373048441,-430.0,0.00019452,2]
[362604507,1748373048451,-430.0,0.00019452,2]
[362604509,1748373048461,-430.0,0.00019452,2]
[362604511,1748373048471,-533.98257197,0.00019452,2]
[362604513,1748373048482,-151.0,0.00019452,2]
[362604515,1748373048491,-32.50402234,0.00019452,2]
[362604518,1748373048505,-248.36503966,0.00019452,2]
[362604520,1748373048515,-151.0,0.00019452,2]
[362604522,1748373048526,-151.0,0.00019452,2]
[362604524,1748373048537,-430.0,0.00019452,2]
[362604526,1748373048547,-151.0,0.00019452,2]
[362604528,1748373048557,-151.0,0.00019452,2]
[362604530,1748373048567,-151.0,0.00019452,2]
[362604532,1748373048577,-151.0,0.00019452,2]
[362604534,1748373048591,-151.0,0.00019452,2]
[362604536,1748373048601,-151.0,0.00019452,2]
[362604538,1748373048611,-430.0,0.00019452,2]
[362604540,1748373048621,-198.04,0.00019452,2]
[362604542,1748373048632,-430.0,0.00019452,2]
[362604544,1748373048644,-151.0,0.00019452,2]
[362604546,1748373048654,-151.0,0.00019452,2]
[362604559,1748373048772,-430.0,0.00019452,2]
[362604561,1748373048783,-430.0,0.00019452,2]
[362604563,1748373048793,-387.79,0.00019452,2]
[362604565,1748373048802,-430.0,0.00019452,2]
[362604567,1748373048814,-428.56627088,0.00019452,2]
[362604569,1748373048823,-430.0,0.00019452,2]
[362604571,1748373048833,-626.202521,0.00019452,2]
[362604573,1748373048843,-626.202521,0.00019452,2]
[362604575,1748373048853,-632.85,0.00019452,2]
[362604577,1748373048863,-626.202521,0.00019452,2]
[362604579,1748373048873,-626.202521,0.00019452,2]
[362604580,1748373048883,-452.47870037,0.00019452,2]
[362604582,1748373048893,-430.0,0.00019452,2]
[362604584,1748373048903,-430.0,0.00019452,2]
[362604586,1748373048914,-1523.43,0.00019452,2]
[362604588,1748373048924,-430.0,0.00019452,2]
[362604590,1748373048934,-895.32388213,0.00019452,2]
[362606685,1748373264667,415.021316,0.00013699,2]
[362606686,1748373366251,467.0,0.000244,120]
[362606786,1748374231892,-907.80097236,0.000179,2]
[362606788,1748374231903,-300.0,0.00017998,2]
[362606790,1748374231913,-1200.0,0.00017998,2]
[362606793,1748374231923,-500.0,0.00017999,2]
[362606794,1748374231932,-376.52930003,0.00017999,2]
[362606797,1748374231941,-500.0,0.00017999,2]
[362606799,1748374231951,-500.0,0.00017999,2]
[362606801,1748374231963,-500.0,0.00017999,2]
[362606803,1748374231972,-500.0,0.00017999,2]
[362606805,1748374231982,-559.08682312,0.00017999,2]
[362606807,1748374231992,-173.23186923,0.00017999,2]
[362606809,1748374232001,-500.0,0.00017999,2]
[362606811,1748374232011,-3625.25327509,0.00018,2]
[362606813,1748374232023,-40583.87731512,0.00018,2]
[362606815,1748374232032,-12236.53718154,0.00018,2]
[362606817,1748374232041,-2583.90785526,0.00018,2]
[362606819,1748374232051,-24259.65073436,0.00018,2]
[362606821,1748374232061,-370.663527,0.00018177,2]
[362606823,1748374232071,-2588.5655208,0.000189,2]
[362606825,1748374232080,-907.8009723,0.000189,2]
[362606827,1748374232090,-174.6061897,0.00019,2]
[362606829,1748374232100,-2983.76,0.00019044,2]
[362606831,1748374232109,-19449.6556543,0.00019099,2]
[362606840,1748374232185,-437.96675848,0.00017999,2]
[362606842,1748374232194,-536.40530235,0.00017999,2]
[362606844,1748374232205,-536.40530235,0.00017999,2]
[362606847,1748374232215,-500.0,0.00017999,2]
[362606849,1748374232226,-536.40530235,0.00017999,2]
[362606851,1748374232236,-536.40530235,0.00017999,2]
[362606853,1748374232245,-30550.3443457,0.00019099,2]
[362606855,1748374232256,-99074.0,0.000191,2]
[362606857,1748374232265,-500.0,0.000191,2]
[362606859,1748374232274,-2588.56552051,0.00019107,2]
[362606861,1748374232284,-300.0,0.00019173,2]
[362606863,1748374232293,-11239.73326483,0.00019178,3]
[362606865,1748374232303,-31842.6556433,0.00019178,2]
[362606867,1748374232313,-151.0,0.00019178,2]
[362606869,1748374232322,-151.0,0.00019178,2]
[362606871,1748374232332,-151.0,0.00019178,2]
[362606873,1748374232342,-430.0,0.00019178,2]
[362606875,1748374232352,-430.0,0.00019178,2]
[362606877,1748374232366,-430.0,0.00019178,2]
[362606879,1748374232375,-430.0,0.00019178,2]
[362606881,1748374232385,-430.0,0.00019178,2]
[362606883,1748374232395,-430.0,0.00019178,2]
[362606886,1748374232407,-430.0,0.00019178,2]
[362606888,1748374232416,-430.0,0.00019178,2]
[362606890,1748374232428,-430.0,0.00019178,2]
[362606892,1748374232437,-430.0,0.00019178,2]
[362606894,1748374232447,-430.0,0.00019178,2]
[362606896,1748374232458,-430.0,0.00019178,2]
[362606898,1748374232468,-430.0,0.00019178,2]
[362606900,1748374232477,-430.0,0.00019178,2]
[362606902,1748374232489,-415.52709716,0.00019178,2]
[362606904,1748374232499,-500.0,0.00019178,2]
[362606906,1748374232508,-430.0,0.00019178,2]
[362606908,1748374232518,-273.91374003,0.00019178,2]
[362606910,1748374232528,-430.0,0.00019178,2]
[362606912,1748374232537,-318.53186603,0.00019178,2]
[362606914,1748374232547,-430.0,0.00019178,2]
[362606917,1748374232557,-430.0,0.00019178,2]
[362606919,1748374232567,-430.0,0.00019178,2]
[362606921,1748374232577,-430.0,0.00019178,2]
[362606923,1748374232587,-430.0,0.00019178,2]
[362606925,1748374232597,-341.82279311,0.00019178,2]
[362606927,1748374232606,-430.0,0.00019178,2]
[362606929,1748374232616,-430.0,0.00019178,2]
[362606931,1748374232626,-430.0,0.00019178,2]
[362606933,1748374232635,-430.0,0.00019178,2]
[362606935,1748374232645,-430.0,0.00019178,2]
[362606937,1748374232655,-430.0,0.00019178,2]
[362606939,1748374232664,-430.0,0.00019178,2]
[362606941,1748374232674,-430.0,0.00019178,2]
[362606943,1748374232683,-430.0,0.00019178,2]
[362606945,1748374232692,-296.73408255,0.00019178,2]
[362606947,1748374232703,-430.0,0.00019178,2]
[362606949,1748374232714,-343.42695898,0.00019178,2]
[362606951,1748374232723,-430.0,0.00019178,2]
[362606953,1748374232733,-430.0,0.00019178,2]
[362606954,1748374232743,-430.0,0.00019178,2]
[362606955,1748374232903,-430.0,0.00019178,2]
[362606956,1748374232916,-430.0,0.00019178,2]
[362606957,1748374232926,-199.77257741,0.00019178,2]
[362606958,1748374232937,-430.0,0.00019178,2]
[362606959,1748374232947,-430.0,0.00019178,2]
[362606960,1748374232957,-169.74287815,0.00019178,2]
[362606961,1748374232967,-430.0,0.00019178,2]
[362606962,1748374232976,-430.0,0.00019178,2]
[362606963,1748374232986,-430.0,0.00019178,2]
[362606964,1748374232995,-294.99041715,0.00019178,2]
[362606965,1748374233005,-430.0,0.00019178,2]
[362606966,1748374233016,-430.0,0.00019178,2]
[362606967,1748374233025,-430.0,0.00019178,2]
[362606968,1748374233036,-430.0,0.00019178,2]
[362606969,1748374233046,-411.84071174,0.00019178,2]
[362606970,1748374233056,-154.4213844,0.00019178,2]
[362606971,1748374233066,-430.0,0.00019178,2]
[362606972,1748374233076,-430.0,0.00019178,2]
[362606973,1748374233086,-430.0,0.00019178,2]
[362606974,1748374233096,-430.0,0.00019178,2]
[362606975,1748374233106,-1614.78,0.00019178,2]
[362606976,1748374233117,-430.0,0.00019178,2]
[362606977,1748374233127,-430.0,0.00019178,2]
[362606978,1748374233137,-430.0,0.00019178,2]
[362606979,1748374233147,-2382.96,0.00019178,2]
[362606980,1748374233157,-430.0,0.00019178,2]
[362606981,1748374233167,-430.0,0.00019178,2]
[362606982,1748374233177,-430.0,0.00019178,2]
[362606983,1748374233187,-584.02,0.00019178,2]
[362606984,1748374233197,-430.0,0.00019178,2]
[362606985,1748374233207,-430.0,0.00019178,2]
[362606986,1748374233217,-430.0,0.00019178,2]
[362606987,1748374233227,-430.0,0.00019178,2]
[362606988,1748374233238,-430.0,0.00019178,2]
[362606989,1748374233248,-295.40745137,0.00019178,2]
[362606990,1748374233257,-430.0,0.00019178,2]
[362606991,1748374233268,-430.0,0.00019178,2]
[362606992,1748374233277,-1381.99,0.00019178,2]
[362606993,1748374233287,-434.89,0.00019178,2]
[362606994,1748374233297,-1713.29,0.00019178,2]
[362606995,1748374233307,-522.21789062,0.00019178,2]
[362606996,1748374233317,-430.0,0.00019178,2]
[362606997,1748374233327,-430.0,0.00019178,2]
[362606998,1748374233336,-430.0,0.00019178,2]
[362606999,1748374233346,-912.82,0.00019178,2]
[362607000,1748374233358,-430.0,0.00019178,2]
[362607001,1748374233368,-430.0,0.00019178,2]
[362607002,1748374233378,-430.0,0.00019178,2]
[362607003,1748374233388,-430.0,0.00019178,2]
[362607004,1748374233399,-430.0,0.00019178,2]
[362607005,1748374233410,-499.65,0.00019178,2]
[362607006,1748374233420,-430.0,0.00019178,2]
[362607007,1748374233431,-2022.5,0.00019178,2]
[362607008,1748374233441,-430.0,0.00019178,2]
[362607009,1748374233451,-430.0,0.00019178,2]
[362607010,1748374233461,-612.98,0.00019178,2]
[362607011,1748374233471,-3021.60235083,0.00019178,2]
[362607032,1748374237843,-536.40530235,0.00017999,2]
[362607034,1748374237853,-536.40530235,0.00017999,2]
[362607036,1748374237863,-500.0,0.00017999,2]
[362607038,1748374237873,-240.9345639,0.00017999,2]
[362607041,1748374237889,-295.47073845,0.00017999,2]
[362607043,1748374237898,-37.85201236,0.00017999,2]
[362607438,1748374242875,-300.0,0.00017998,2]
[362607440,1748374242885,-498.55328999,0.00017999,2]
[362607442,1748374242894,-342.94227479,0.00017999,2]
[362607444,1748374242904,-536.40530235,0.00017999,2]
[362607448,1748374242914,-536.40530235,0.00017999,2]
[362607451,1748374242923,-536.40530235,0.00017999,2]
[362607454,1748374242934,-536.40530235,0.00017999,2]
[362607457,1748374242943,-536.40530235,0.00017999,2]
[362607460,1748374242954,-536.40530235,0.00017999,2]
[362607462,1748374242964,-536.40530235,0.00017999,2]
[362607464,1748374242974,-536.40530235,0.00017999,2]
[362607466,1748374242983,-536.40530235,0.00017999,2]
[362607468,1748374242993,-536.40530235,0.00017999,2]
[362607470,1748374243002,-536.40530235,0.00017999,2]
[362607472,1748374243011,-536.40530235,0.00017999,2]
[362607474,1748374243020,-100.46764917,0.00019178,2]
[362607476,1748374243029,-430.0,0.00019178,2]
[362607478,1748374243039,-120.02105421,0.00019178,2]
[362607480,1748374243050,-309.97894579,0.00019178,2]
[362607482,1748374243060,-430.0,0.00019178,2]
[362607484,1748374243069,-430.0,0.00019178,2]
[362607486,1748374243078,-430.0,0.00019178,2]
[362607488,1748374243088,-430.0,0.00019178,2]
[362607490,1748374243098,-430.0,0.00019178,2]
[362607492,1748374243108,-430.0,0.00019178,2]
[362607494,1748374243118,-539.89,0.00019178,2]
[362607496,1748374243128,-440.16,0.00019178,2]
[362607498,1748374243137,-430.0,0.00019178,2]
[362607500,1748374243147,-430.0,0.00019178,2]
[362607502,1748374243157,-522.97,0.00019178,2]
[362607505,1748374243167,-430.0,0.00019178,2]
[362607507,1748374243177,-767.74,0.00019178,2]